bitfinex-derivatives/quotes_BTCF0:USTF0_20250823
["timestamp","ask_amount","ask_price","bid_price","bid_amount"]
[1755909953392,1.07086691,116890.0,116880.0,2.12247782]
[1755909958907,1.07086691,116890.0,116880.0,2.32269094]
[1755909959905,1.43166691,116890.0,116880.0,2.32269094]
[1755909960205,1.43166691,116890.0,116880.0,2.12247782]
[1755909961003,1.63288832,116890.0,116880.0,1.49835641]
[1755909961196,1.63288832,116890.0,116880.0,1.69858762]
[1755909961504,1.63288832,116890.0,116880.0,1.64493556]
[1755909961700,1.88368832,116890.0,116880.0,1.44371475]
[1755909961905,1.88368832,116890.0,116880.0,1.35667163]
[1755909962300,1.88368832,116890.0,116880.0,1.15644042]
[1755909963002,1.88368832,116890.0,116880.0,1.00241248]
[1755909964101,1.68246691,116890.0,116880.0,1.00241248]
[1755909964301,1.88288832,116890.0,116880.0,1.00241248]
[1755909964501,1.68166691,116890.0,116880.0,1.00241248]
[1755909964704,1.63288832,116890.0,116880.0,1.44226389]
[1755909964907,1.63288832,116890.0,116880.0,1.61054389]
[1755909966106,1.63288832,116890.0,116880.0,1.44226389]
[1755909966309,1.63288832,116890.0,116880.0,1.61054389]
[1755909968404,1.43166691,116890.0,116880.0,1.61054389]
[1755909968606,1.63288832,116890.0,116880.0,1.61054389]
[1755909971515,1.63288832,116890.0,116880.0,1.40932248]
[1755909971809,1.63288832,116890.0,116880.0,1.15131248]
[1755909973916,1.88288832,116890.0,116880.0,1.00241258]
[1755909976416,2.14648832,116890.0,116880.0,1.00241258]
[1755909977115,1.94526691,116890.0,116880.0,1.15131258]
[1755909977309,2.14648832,116890.0,116880.0,1.31959258]
[1755909977509,2.14648832,116890.0,116880.0,1.40932258]
[1755909980715,1.94526691,116890.0,116880.0,1.40932258]
[1755909980914,2.14648832,116890.0,116880.0,1.40932258]
[1755909981522,2.14648832,116890.0,116880.0,1.56335052]
[1755909986320,1.94526691,116890.0,116880.0,1.56335052]
[1755909986517,2.14648832,116890.0,116880.0,1.56335052]
[1755909987621,1.94526691,116890.0,116880.0,1.56335052]
[1755909987813,2.14648832,116890.0,116880.0,1.56335052]
[1755909988817,1.94526691,116890.0,116880.0,1.56335052]
[1755909989124,1.18043691,116890.0,116880.0,2.05214751]
[1755909989322,1.06603691,116890.0,116880.0,1.8509261]
[1755909989709,1.06603691,116890.0,116880.0,1.69689816]
[1755909990322,1.06603691,116890.0,116880.0,1.89712937]
[1755909991322,1.06603691,116890.0,116880.0,1.89632937]
[1755909991727,1.06603691,116890.0,116880.0,2.09835078]
[1755909991926,1.06603691,116890.0,116880.0,1.89712937]
[1755909992522,1.06603691,116890.0,116880.0,1.89632937]
[1755909994128,0.80243691,116890.0,116880.0,1.89632937]
[1755909994638,0.80243691,116890.0,116880.0,2.34835078]
[1755909994838,0.80243691,116890.0,116880.0,2.34983974]
[1755909995039,0.80243691,116890.0,116880.0,2.14960853]
[1755909995340,0.44163691,116890.0,116880.0,2.14960853]
[1755909995545,0.40652941,116890.0,116880.0,2.34930474]
[1755909995733,0.30331411,116890.0,116880.0,2.34930474]
[1755909995934,0.22812181,116890.0,116880.0,2.34930474]
[1755909996137,0.03518941,116890.0,116880.0,2.30766192]
[1755909996336,0.03518941,116890.0,116880.0,2.71010474]
[1755909996636,1e-08,116890.0,116880.0,2.71010474]
[1755909998342,1e-08,116890.0,116880.0,2.53130149]
[1755910000331,1.26802,116900.0,116890.0,0.3447811]
[1755910000536,1.4351,116900.0,116890.0,0.7358411]
[1755910000941,1.4351,116900.0,116890.0,1.04503484]
[1755910001145,1.85308957,116900.0,116890.0,0.65889527]
[1755910001445,1.85388957,116900.0,116890.0,0.3982311]
[1755910001639,1.85488957,116900.0,116890.0,0.2543411]
[1755910001942,1.85588957,116900.0,116890.0,0.2553411]
[1755910002131,1.85588957,116900.0,116890.0,0.40873408]
[1755910002647,1.63225,116900.0,116890.0,0.55262408]
[1755910002945,1.63225,116900.0,116890.0,0.3992311]
[1755910003442,1.63225,116900.0,116890.0,0.51012417]
[1755910005642,2.10508957,116900.0,116890.0,0.29793124]
[1755910005945,2.36868957,116900.0,116890.0,0.24001124]
[1755910006546,2.36868957,116900.0,116890.0,0.0865711]
[1755910007036,2.36868957,116900.0,116890.0,0.2553411]
[1755910010547,2.36868957,116900.0,116890.0,0.1444911]
[1755910014454,2.36868957,116900.0,116890.0,0.29793124]
[1755910016254,2.08774957,116900.0,116890.0,0.29793124]
[1755910017555,2.08774957,116900.0,116890.0,0.44287124]
[1755910017956,2.08774957,116900.0,116890.0,0.29793124]
[1755910018855,2.08774957,116900.0,116890.0,0.44287124]
[1755910020656,2.08774957,116900.0,116890.0,0.53169124]
[1755910020657,1.82414957,116900.0,116890.0,0.53169124]
[1755910020851,1.82414957,116900.0,116890.0,0.3782511]
[1755910021156,1.82414957,116900.0,116890.0,0.53202595]
[1755910021356,1.99033957,116900.0,116890.0,0.64320595]
[1755910021749,1.99033957,116900.0,116890.0,0.80676595]
[1755910021950,1.99033957,116900.0,116890.0,0.6529911]
[1755910022351,1.99033957,116900.0,116890.0,0.4894311]
[1755910022547,1.99033957,116900.0,116890.0,0.2556711]
[1755910022855,1.99033957,116900.0,116890.0,0.1444911]
[1755910023056,1.99033957,116900.0,116890.0,0.29830206]
[1755910023451,1.99033957,116900.0,116890.0,0.24038206]
[1755910023652,1.74033957,116900.0,116890.0,0.24038206]
[1755910023852,1.99033957,116900.0,116890.0,0.0865711]
[1755910025362,1.74033957,116900.0,116890.0,0.0865711]
[1755910027261,1.99033957,116900.0,116890.0,0.0865711]
[1755910029166,0.59148,116890.0,116880.0,1.00241218]
[1755910029465,1.17591957,116890.0,116880.0,1.00241218]
[1755910030468,1.17691957,116890.0,116880.0,1.00241218]
[1755910031064,1.17691957,116890.0,116880.0,1.14735218]
[1755910031369,1.17691957,116890.0,116880.0,1.00241218]
[1755910031859,1.17691957,116890.0,116880.0,1.15622314]
[1755910032467,1.17791957,116890.0,116880.0,1.15622314]
[1755910032860,1.17791957,116890.0,116880.0,1.30116314]
[1755910033062,1.17791957,116890.0,116880.0,1.46472314]
[1755910033667,1.17791957,116890.0,116880.0,1.55354314]
[1755910033868,0.95428,116890.0,116880.0,1.55354314]
[1755910034171,1.17791957,116890.0,116880.0,1.55354314]
[1755910034470,1.1556835,116890.0,116880.0,1.55354314]
[1755910035469,1.4192835,116890.0,116880.0,1.55354314]
[1755910035876,1.4192835,116890.0,116880.0,1.39973218]
[1755910054783,1.21788,116890.0,116880.0,1.39973218]
[1755910054982,1.4192835,116890.0,116880.0,1.39973218]
[1755910056390,1.21788,116890.0,116880.0,1.39973218]
[1755910056584,1.4192835,116890.0,116880.0,1.39973218]
[1755910060592,1.1457235,116890.0,116880.0,1.39973218]
[1755910060793,1.4173235,116890.0,116880.0,1.39973218]
[1755910061095,1.4173235,116890.0,116880.0,1.55354314]
[1755910061296,0.72132,116890.0,116880.0,1.75574664]
[1755910061496,0.8278035,116890.0,116880.0,1.75574664]
[1755910062097,0.6264,116890.0,116880.0,1.75574664]
[1755910063087,0.6264,116890.0,116880.0,2.00574664]
[1755910063395,0.3614,116890.0,116880.0,2.13718606]
[1755910064396,0.3614,116890.0,116880.0,1.93748985]
[1755910064597,0.2656,116890.0,116880.0,1.93748985]
[1755910064998,0.002,116890.0,116880.0,1.93748985]
[1755910065302,0.79336,116900.0,116890.0,0.7545208]
[1755910065603,0.79336,116900.0,116890.0,1.40562051]
[1755910065895,0.79336,116900.0,116890.0,1.49116736]
[1755910066300,0.79336,116900.0,116890.0,1.85196736]
[1755910066598,0.79536,116900.0,116890.0,1.85196736]
[1755910066798,0.79536,116900.0,116890.0,1.65227115]
[1755910067196,0.79536,116900.0,116890.0,1.85197764]
[1755910067498,0.79636,116900.0,116890.0,1.85197764]
[1755910069099,0.79636,116900.0,116890.0,2.00547351]
[1755910069501,0.79636,116900.0,116890.0,1.80576702]
[1755910070301,0.79464,116900.0,116890.0,1.80496702]
[1755910075097,0.79464,116900.0,116890.0,1.60356352]
[1755910075293,0.79464,116900.0,116890.0,1.80496702]
[1755910075800,0.79464,116900.0,116890.0,1.44416702]
[1755910075997,0.79464,116900.0,116890.0,1.80496702]
[1755910078002,0.79464,116900.0,116890.0,1.44416702]
[1755910078901,0.79464,116900.0,116890.0,1.08926765]
[1755910079100,0.79464,116900.0,116890.0,1.29067115]
[1755910084509,0.9003,116900.0,116890.0,1.29067115]
[1755910085407,0.79464,116900.0,116890.0,1.04067115]
[1755910085607,0.79464,116900.0,116890.0,1.40147115]
[1755910088910,0.9003,116900.0,116890.0,1.40147115]
[1755910089407,0.85204,116900.0,116890.0,1.40147115]
[1755910089612,0.003,116900.0,116890.0,1.85367465]
[1755910090107,0.003,116900.0,116890.0,1.65057414]
[1755910090613,0.003,116900.0,116890.0,1.85197764]
[1755910092804,0.2044035,116900.0,116890.0,1.85197764]
[1755910093913,0.003,116900.0,116890.0,1.85197764]
[1755910094109,0.2044035,116900.0,116890.0,1.85197764]
[1755910094713,0.003,116900.0,116890.0,1.85197764]
[1755910094914,0.003,116900.0,116890.0,1.65227115]
[1755910096216,0.003,116900.0,116890.0,1.45086765]
[1755910096407,0.003,116900.0,116890.0,1.65227115]
[1755910097320,0.003,116900.0,116890.0,1.85176079]
[1755910097614,0.003,116900.0,116890.0,1.65035729]
[1755910098413,0.2044035,116900.0,116890.0,1.65035729]
[1755910099512,0.2044035,116900.0,116890.0,1.45086765]
[1755910100918,0.2044035,116900.0,116890.0,1.65035729]
[1755910101523,0.2044035,116900.0,116890.0,1.58998729]
[1755910101824,0.2044035,116900.0,116890.0,1.58918729]
[1755910102012,0.2044035,116900.0,116890.0,1.38969765]
[1755910102919,0.2044035,116900.0,116890.0,1.58917185]
[1755910105525,0.2044035,116900.0,116890.0,1.38969765]
[1755910105918,0.2044035,116900.0,116890.0,1.63515941]
[1755910109918,0.2044035,116900.0,116890.0,1.58471201]
[1755910110129,0.2044035,116900.0,116890.0,1.33925025]
[1755910111230,0.3711835,116900.0,116890.0,1.33925025]
[1755910111428,0.8670835,116900.0,116890.0,1.33925025]
[1755910112320,0.8670835,116900.0,116890.0,1.13969765]
[1755910113529,0.8670835,116900.0,116890.0,1.33925025]
[1755910113727,0.7170935,116900.0,116890.0,1.33925025]
[1755910114230,0.6298035,116900.0,116890.0,1.33925025]
[1755910114826,0.6298035,116900.0,116890.0,1.13969765]
[1755910115832,0.4655635,116900.0,116890.0,1.13969765]
[1755910117335,0.6298035,116900.0,116890.0,1.13969765]
[1755910117529,0.7170935,116900.0,116890.0,1.13969765]
[1755910118833,0.7170935,116900.0,116890.0,1.19506765]
[1755910120233,0.7170935,116900.0,116890.0,1.44052941]
[1755910120432,0.8670835,116900.0,116890.0,1.44052941]
[1755910122230,0.8670835,116900.0,116890.0,1.19506765]
[1755910123843,0.8670835,116900.0,116890.0,1.44116195]
[1755910126037,0.8670835,116900.0,116890.0,1.19506765]
[1755910127943,1.068487,116900.0,116890.0,1.23345264]
[1755910128132,1.068487,116900.0,116890.0,1.03987264]
[1755910128133,0.8670835,116900.0,116890.0,1.03987264]
[1755910129241,0.8670835,116900.0,116890.0,0.83990765]
[1755910133946,0.8670835,116900.0,116890.0,1.08600195]
[1755910135246,1.068487,116900.0,116890.0,1.08600195]
[1755910135447,1.068487,116900.0,116890.0,1.28590636]
[1755910135946,0.8670835,116900.0,116890.0,1.03981206]
[1755910136534,0.8670835,116900.0,116890.0,0.83990765]
[1755910137249,1.068487,116900.0,116890.0,0.84464765]
[1755910137441,0.8670835,116900.0,116890.0,0.84464765]
[1755910140351,1.068487,116900.0,116890.0,0.84464765]
[1755910141545,0.8670835,116900.0,116890.0,0.84464765]
[1755910142750,0.8670835,116900.0,116890.0,1.04455206]
[1755910143254,0.8670835,116900.0,116890.0,1.40535206]
[1755910143953,0.8670835,116900.0,116890.0,1.20544765]
[1755910148867,0.8670835,116900.0,116890.0,1.40523355]
[1755910150859,0.2044035,116900.0,116890.0,1.40523355]
[1755910151263,0.003,116900.0,116890.0,1.65603355]
[1755910151568,0.2044035,116900.0,116890.0,1.65603355]
[1755910151768,0.003,116900.0,116890.0,1.65603355]
[1755910151966,0.2044035,116900.0,116890.0,1.65603355]
[1755910152674,0.2044035,116900.0,116890.0,1.45544765]
[1755910153467,0.2044035,116900.0,116890.0,1.65685115]
[1755910153677,0.2044035,116900.0,116890.0,1.45544765]
[1755910154069,0.2044035,116900.0,116890.0,1.70154195]
[1755910156078,0.2044035,116900.0,116890.0,1.45544765]
[1755910156971,0.2044035,116900.0,116890.0,1.95544765]
[1755910157382,0.003,116900.0,116890.0,1.95544765]
[1755910157575,0.2044035,116900.0,116890.0,1.95544765]
[1755910159079,0.2044035,116900.0,116890.0,2.40103506]
[1755910159667,0.2044035,116900.0,116890.0,2.76183506]
[1755910161076,0.003,116900.0,116890.0,2.96323856]
[1755910161282,0.003,116900.0,116890.0,2.76349248]
[1755910161476,0.003,116900.0,116890.0,2.56208898]
[1755910161682,0.003,116900.0,116890.0,2.76349248]
[1755910161982,0.003,116900.0,116890.0,2.91710561]
[1755910162979,0.003,116900.0,116890.0,2.87306428]
[1755910163173,0.003,116900.0,116890.0,2.67086078]
[1755910163483,0.2044035,116900.0,116890.0,3.35656096]
[1755910163787,0.3399835,116900.0,116890.0,3.20294783]
[1755910163976,0.3399835,116900.0,116890.0,3.50960566]
[1755910164175,0.3399835,116900.0,116890.0,3.51060566]
[1755910164982,0.3389835,116900.0,116890.0,3.51060566]
[1755910165182,0.3399835,116900.0,116890.0,3.51160566]
[1755910167993,0.3399835,116900.0,116890.0,3.20494783]
[1755910168988,0.3399835,116900.0,116890.0,3.4042675]
[1755910170089,0.3399835,116900.0,116890.0,3.1542675]
[1755910173792,0.3399835,116900.0,116890.0,2.95494783]
[1755910177086,0.13858,116900.0,116890.0,2.95494783]
[1755910177285,0.3399835,116900.0,116890.0,2.95494783]
[1755910182194,0.003,116900.0,116890.0,3.09704783]
[1755910182401,0.2044035,116900.0,116890.0,3.09704783]
[1755910183000,0.3414435,116900.0,116890.0,3.09704783]
[1755910186803,0.6083235,116900.0,116890.0,3.34183945]
[1755910187303,0.8578635,116900.0,116890.0,3.34183945]
[1755910187804,0.8578635,116900.0,116890.0,2.40661945]
[1755910188104,0.8578635,116900.0,116890.0,2.95649927]
[1755910188996,0.8578635,116900.0,116890.0,2.71114765]
[1755910190902,0.8578635,116900.0,116890.0,2.91102164]
[1755910192212,0.8578635,116900.0,116890.0,2.91103864]
[1755910193510,0.8578635,116900.0,116890.0,2.91102166]
[1755910194900,0.8578635,116900.0,116890.0,2.71114765]
[1755910198810,0.8578635,116900.0,116890.0,2.95706009]
[1755910200814,0.8578635,116900.0,116890.0,2.71114765]
[1755910201015,0.3414435,116900.0,116890.0,2.91093735]
[1755910201407,0.5135535,116900.0,116890.0,2.91093735]
[1755910201607,0.6828935,116900.0,116890.0,2.91093735]
[1755910202011,0.7818335,116900.0,116890.0,2.91093735]
[1755910202316,0.8714435,116900.0,116890.0,2.91093735]
[1755910204618,0.8714435,116900.0,116890.0,2.71114765]
[1755910209616,0.5135535,116900.0,116890.0,2.71114765]
[1755910213918,0.5135535,116900.0,116890.0,2.9109888]
[1755910214319,0.6828935,116900.0,116890.0,2.9109888]
[1755910214520,0.5135535,116900.0,116890.0,2.9109888]
[1755910214914,0.5135535,116900.0,116890.0,3.06473194]
[1755910215418,0.5135535,116900.0,116890.0,2.86489079]
[1755910215713,0.5135535,116900.0,116890.0,2.86491451]
[1755910216016,0.2044035,116900.0,116890.0,3.06631801]
[1755910216423,0.2044035,116900.0,116890.0,2.86491451]
[1755910216728,0.2044035,116900.0,116890.0,2.71114765]
[1755910218325,0.3401035,116900.0,116890.0,2.71114765]
[1755910222029,0.1387,116900.0,116890.0,2.71114765]
[1755910222227,0.3401035,116900.0,116890.0,2.71114765]
[1755910225529,0.1387,116900.0,116890.0,2.71114765]
[1755910232334,0.24866,116900.0,116890.0,2.71114765]
[1755910232640,0.24866,116900.0,116890.0,3.01780548]
[1755910235841,0.24866,116900.0,116890.0,3.26379115]
[1755910236633,0.4500635,116900.0,116890.0,2.95713332]
[1755910238045,0.5042635,116900.0,116890.0,2.95713332]
[1755910238942,0.30286,116900.0,116890.0,2.95713332]
[1755910239138,0.5042635,116900.0,116890.0,3.15853682]
[1755910239341,0.5042635,116900.0,116890.0,2.95713332]
[1755910239541,0.5042635,116900.0,116890.0,3.15853682]
[1755910239749,0.5042635,116900.0,116890.0,2.91255115]
[1755910240141,0.5042635,116900.0,116890.0,2.71114765]
[1755910242045,0.5042635,116900.0,116890.0,2.91255115]
[1755910243041,0.5042635,116900.0,116890.0,3.05465115]
[1755910243241,0.5042635,116900.0,116890.0,2.91255115]
[1755910244445,0.5042635,116900.0,116890.0,2.71114765]
[1755910246746,0.5042635,116900.0,116890.0,3.01780548]
[1755910248745,0.8386735,116900.0,116890.0,3.01780548]
[1755910250649,0.8386735,116900.0,116890.0,2.71114765]
[1755910254250,0.8386735,116900.0,116890.0,2.95748358]
[1755910258250,0.8386735,116900.0,116890.0,2.71114765]
[1755910258654,0.8386735,116900.0,116890.0,3.01780548]
[1755910260849,0.8386735,116900.0,116890.0,2.71114765]
[1755910263155,0.8386735,116900.0,116890.0,2.95747914]
[1755910264050,0.63727,116900.0,116890.0,2.95747914]
[1755910264451,0.8386735,116900.0,116890.0,2.95747914]
[1755910265256,0.8386735,116900.0,116890.0,2.71114765]
[1755910265956,0.63727,116900.0,116890.0,2.71114765]
[1755910266256,0.8386735,116900.0,116890.0,2.71114765]
[1755910266856,0.8386735,116900.0,116890.0,3.01780548]
[1755910270861,0.8386735,116900.0,116890.0,2.71114765]
[1755910271763,0.8386735,116900.0,116890.0,2.95745477]
[1755910275257,0.8386735,116900.0,116890.0,2.71114765]
[1755910281371,0.63727,116900.0,116890.0,2.71114765]
[1755910281572,0.8386735,116900.0,116890.0,2.71114765]
[1755910284781,0.63727,116900.0,116890.0,2.71114765]
[1755910284979,0.8386735,116900.0,116890.0,2.73804665]
[1755910285280,0.63727,116900.0,116890.0,2.73804665]
[1755910285482,0.8386735,116900.0,116890.0,2.73804665]
[1755910297678,0.8386735,116900.0,116890.0,2.80781506]
[1755910298189,0.8386735,116900.0,116890.0,2.92099963]
[1755910304992,0.8386735,116900.0,116890.0,2.13195963]
[1755910305196,0.8382135,116900.0,116890.0,2.91803963]
[1755910308094,0.8382135,116900.0,116890.0,1.95999963]
[1755910308299,1.0882135,116900.0,116890.0,1.89056963]
[1755910318308,1.8740135,116900.0,116890.0,1.89056963]
[1755910323998,2.075417,116900.0,116890.0,1.10456963]
[1755910324404,2.075417,116900.0,116890.0,0.99138506]
[1755910325611,1.825417,116900.0,116890.0,0.99138506]
[1755910327112,2.075417,116900.0,116890.0,0.26978506]
[1755910349222,1.65768,116900.0,116890.0,0.0855708]
[1755910349423,2.060487,116900.0,116890.0,0.17111765]
[1755910349829,2.470897,116900.0,116890.0,0.17111765]
[1755910350021,2.220897,116900.0,116890.0,0.17111765]
[1755910350227,1.81809,116900.0,116890.0,0.08111765]
[1755910350427,2.220897,116900.0,116890.0,0.08111765]
[1755910351327,2.220897,116900.0,116890.0,0.16668845]
[1755910353131,0.66643,116890.0,116880.0,1.08672115]
[1755910353320,1.069237,116890.0,116880.0,1.08672115]
[1755910353523,1.069237,116890.0,116880.0,1.172268]
[1755910353730,1.069237,116890.0,116880.0,1.24204238]
[1755910354630,1.070237,116890.0,116880.0,1.24204238]
[1755910355629,1.072237,116890.0,116880.0,1.24304238]
[1755910358642,0.66943,116890.0,116880.0,1.60384238]
[1755910358937,1.857277,116890.0,116880.0,1.60384238]
[1755910359238,1.856277,116890.0,116880.0,1.60384238]
[1755910359436,1.857277,116890.0,116880.0,1.60484238]
[1755910360440,1.857277,116890.0,116880.0,1.60335341]
[1755910366350,1.857277,116890.0,116880.0,1.60484232]
[1755910375059,2.32847791,116890.0,116880.0,0.5166276]
[1755910375353,2.48787441,116890.0,116880.0,0.3416276]
[1755910376355,2.48787441,116890.0,116880.0,0.4262052]
[1755910376551,2.48687441,116890.0,116880.0,0.0875776]
[1755910376752,2.48687441,116890.0,116880.0,0.17313177]
[1755910380156,2.48607441,116890.0,116880.0,0.17313177]
[1755910385361,2.23607441,116890.0,116880.0,0.17313177]
[1755910385864,2.48607441,116890.0,116880.0,0.17313177]
[1755910386062,1.70103441,116890.0,116880.0,0.17313177]
[1755910386262,2.48591441,116890.0,116880.0,0.17313177]
[1755910386463,2.23591441,116890.0,116880.0,0.17313177]
[1755910387063,2.23591441,116890.0,116880.0,0.20003077]
[1755910387566,2.49951441,116890.0,116880.0,0.20003077]
[1755910387762,2.49947441,116890.0,116880.0,0.36526077]
[1755910387963,2.49947441,116890.0,116880.0,0.60931077]
[1755910388264,2.49947441,116890.0,116880.0,0.52530077]
[1755910388666,2.49947441,116890.0,116880.0,0.36526077]
[1755910390369,2.480477,116890.0,116880.0,0.36526077]
[1755910391066,1.334837,116890.0,116880.0,0.36526077]
[1755910391260,2.119677,116890.0,116880.0,0.60931077]
[1755910391568,1.9182735,116890.0,116880.0,0.60931077]
[1755910392069,2.119677,116890.0,116880.0,0.60931077]
[1755910393559,1.334837,116890.0,116880.0,0.60931077]
[1755910393767,1.3834335,116890.0,116880.0,0.61079972]
[1755910393967,1.9182735,116890.0,116880.0,0.61079972]
[1755910394862,1.1334335,116890.0,116880.0,0.61079972]
[1755910395068,1.9182735,116890.0,116880.0,0.61079972]
[1755910396572,1.9182735,116890.0,116880.0,0.60931077]
[1755910396867,1.1334335,116890.0,116880.0,0.60931077]
[1755910397068,1.9182335,116890.0,116880.0,0.60931077]
[1755910397570,1.1334335,116890.0,116880.0,0.60931077]
[1755910397762,1.9182335,116890.0,116880.0,0.97011077]
[1755910399372,1.6546335,116890.0,116880.0,0.97011077]
[1755910407376,0.8698335,116890.0,116880.0,0.97011077]
[1755910407574,1.6545135,116890.0,116880.0,0.97011077]
[1755910410780,1.45311,116890.0,116880.0,0.97011077]
[1755910411173,1.6545135,116890.0,116880.0,0.97011077]
[1755910411874,0.8698335,116890.0,116880.0,0.97011077]
[1755910412072,1.6544735,116890.0,116880.0,0.97011077]
[1755910413079,0.8698335,116890.0,116880.0,0.97011077]
[1755910413281,1.6544735,116890.0,116880.0,0.97011077]
[1755910414085,1.45307,116890.0,116880.0,0.97011077]
[1755910414284,0.8698335,116890.0,116880.0,1.17151427]
[1755910414580,1.6544335,116890.0,116880.0,1.42151427]
[1755910415577,1.6544335,116890.0,116880.0,1.22011077]
[1755910417578,1.10869207,116890.0,116880.0,1.42151427]
[1755910417777,0.81528515,116910.0,116890.0,0.4586495]
[1755910417778,0.33951,116900.0,116890.0,0.4586495]
[1755910417980,1.22291,116900.0,116890.0,0.6057495]
[1755910418182,1.22291,116900.0,116890.0,0.807153]
[1755910418386,1.22291,116900.0,116890.0,0.69130367]
[1755910418581,1.22291,116900.0,116890.0,0.89270717]
[1755910419280,1.22591,116900.0,116890.0,0.89270717]
[1755910419688,1.46062,116900.0,116890.0,0.89270717]
[1755910419985,1.46162,116900.0,116890.0,0.89270717]
[1755910420182,1.46162,116900.0,116890.0,0.79540717]
[1755910420981,1.46162,116900.0,116890.0,1.15620717]
[1755910421186,0.67706,116900.0,116890.0,1.15620717]
[1755910421392,1.46054,116900.0,116890.0,1.15620717]
[1755910421580,1.46154,116900.0,116890.0,1.15820717]
[1755910421886,1.45954,116900.0,116890.0,1.15920717]
[1755910422391,1.45854,116900.0,116890.0,1.15720717]
[1755910422594,1.45854,116900.0,116890.0,1.15820717]
[1755910422792,1.45954,116900.0,116890.0,1.16120717]
[1755910423383,1.45954,116900.0,116890.0,0.95980367]
[1755910423584,1.45954,116900.0,116890.0,1.16120717]
[1755910424188,1.45954,116900.0,116890.0,1.15920717]
[1755910424488,1.45954,116900.0,116890.0,1.16120717]
[1755910426697,1.6609435,116900.0,116890.0,1.16120717]
[1755910427494,1.6609435,116900.0,116890.0,1.15920717]
[1755910427697,1.6599435,116900.0,116890.0,1.16020717]
[1755910428089,0.50248,116900.0,116890.0,1.41286717]
[1755910428296,1.45846,116900.0,116890.0,1.41086717]
[1755910429290,1.45846,116900.0,116890.0,1.20946367]
[1755910429492,1.45846,116900.0,116890.0,1.41086717]
[1755910429785,0.67406,116900.0,116890.0,1.41086717]
[1755910430395,0.50248,116900.0,116890.0,1.41086717]
[1755910430601,0.41417,116900.0,116890.0,2.10492331]
[1755910431403,0.58575,116900.0,116890.0,2.10492331]
[1755910431590,0.41417,116900.0,116890.0,2.10492331]
[1755910431901,0.1474,116900.0,116890.0,2.10492331]
[1755910432102,0.1474,116900.0,116890.0,2.74692331]
[1755910437007,0.26057,116900.0,116890.0,2.54551981]
[1755910437205,0.4619735,116900.0,116890.0,2.74692331]
[1755910439607,0.4619735,116900.0,116890.0,2.77382231]
[1755910439903,0.5198935,116900.0,116890.0,2.77382231]
[1755910441005,0.20532,116900.0,116890.0,2.77382231]
[1755910441203,0.4067235,116900.0,116890.0,2.77382231]
[1755910441403,0.20532,116900.0,116890.0,2.77382231]
[1755910441605,0.1474,116900.0,116890.0,2.77382231]
[1755910443305,0.2638,116900.0,116890.0,2.77382231]
[1755910445411,0.2638,116900.0,116890.0,2.52382231]
[1755910445603,0.32172,116900.0,116890.0,2.52382231]
[1755910446503,0.1474,116900.0,116890.0,2.77382231]
[1755910446708,0.1474,116900.0,116890.0,2.87382231]
[1755910446903,0.1474,116900.0,116890.0,2.53041881]
[1755910447102,0.3488035,116900.0,116890.0,2.53041881]
[1755910448498,0.3488035,116900.0,116890.0,2.54778955]
[1755910449510,0.1474,116900.0,116890.0,2.54778955]
[1755910449710,0.3488035,116900.0,116890.0,2.54778955]
[1755910450212,0.1474,116900.0,116890.0,2.74919305]
[1755910450396,0.3488035,116900.0,116890.0,2.74919305]
[1755910451005,0.3488035,116900.0,116890.0,2.54778955]
[1755910452212,0.1474,116900.0,116890.0,2.54778955]
[1755910452411,0.3488035,116900.0,116890.0,2.74919305]
[1755910454914,0.3488035,116900.0,116890.0,2.54778955]
[1755910455104,0.3488035,116900.0,116890.0,2.44778955]
[1755910456009,0.1474,116900.0,116890.0,2.44778955]
[1755910461117,0.1474,116900.0,116890.0,2.44762212]
[1755910461809,0.2638,116900.0,116890.0,2.44762212]
[1755910462213,0.32172,116900.0,116890.0,2.44762212]
[1755910462712,0.58447,116900.0,116890.0,2.44762212]
[1755910462914,0.7858735,116900.0,116890.0,2.44762212]
[1755910464809,0.8731835,116900.0,116890.0,2.44805536]
[1755910466214,0.67178,116900.0,116890.0,2.44805536]
[1755910466414,0.8731835,116900.0,116890.0,2.44805536]
[1755910466718,0.58447,116900.0,116890.0,2.44805536]
[1755910467017,0.6194535,116900.0,116890.0,2.44805536]
[1755910467818,0.7839035,116900.0,116890.0,2.44805536]
[1755910468420,0.5825,116900.0,116890.0,2.44805536]
[1755910468611,0.7839035,116900.0,116890.0,2.44805536]
[1755910468919,0.8730935,116900.0,116890.0,2.44805536]
[1755910469926,0.8730935,116900.0,116890.0,2.19805536]
[1755910470222,0.7086435,116900.0,116890.0,2.19805536]
[1755910470416,0.2024035,116900.0,116890.0,2.74945886]
[1755910470613,0.25454836,116910.0,116900.0,0.48322614]
[1755910470824,0.77410186,116910.0,116900.0,1.88243614]
[1755910471321,0.86329186,116910.0,116900.0,1.96797568]
[1755910471920,0.86529186,116910.0,116900.0,1.96997568]
[1755910472121,1.06669536,116910.0,116900.0,1.96997568]
[1755910474021,0.671597,116910.0,116900.0,1.96997568]
[1755910474325,0.5622035,116940.0,116930.0,0.7308716]
[1755910474326,0.43124,116940.0,116930.0,0.7308716]
[1755910474522,0.4681935,116940.0,116930.0,1.89652489]
[1755910474737,0.2014035,116940.0,116930.0,2.84792839]
[1755910475026,1.5145335,116970.0,116960.0,0.2537099]
[1755910475230,1.5145335,116970.0,116960.0,0.36218947]
[1755910475231,1.5153335,116970.0,116960.0,0.36218947]
[1755910475429,1.5153335,116970.0,116960.0,0.60973947]
[1755910475629,1.5153335,116970.0,116960.0,0.69525706]
[1755910475830,0.9942435,116970.0,116960.0,0.69525706]
[1755910476127,1.336977,116970.0,116960.0,0.69525706]
[1755910476332,1.24677513,116970.0,116960.0,0.69525706]
[1755910476527,1.24677513,116970.0,116960.0,0.69625706]
[1755910478233,1.24777513,116970.0,116960.0,0.76590277]
[1755910478428,1.24777513,116970.0,116960.0,0.87830798]
[1755910482730,1.02436,116970.0,116960.0,0.87830798]
[1755910483034,1.24697513,116970.0,116960.0,0.89072701]
[1755910485340,1.02356,116970.0,116960.0,0.89072701]
[1755910485635,1.24697513,116970.0,116960.0,0.89072701]
[1755910486739,1.24697513,116970.0,116960.0,1.02904701]
[1755910492755,1.24697513,116970.0,116960.0,1.01183744]
[1755910493551,1.24697513,116970.0,116960.0,1.02911943]
[1755910495953,1.24697513,116970.0,116960.0,1.02936053]
[1755910496248,1.24697513,116970.0,116960.0,1.01183744]
[1755910496454,1.24697513,116970.0,116960.0,1.02936053]
[1755910498252,1.42572998,116970.0,116960.0,1.02936053]
[1755910499558,1.42572998,116970.0,116960.0,1.02934917]
[1755910502655,1.42572998,116970.0,116960.0,1.04636907]
[1755910503058,2.04775998,116970.0,116960.0,1.04636907]
[1755910503358,2.21944998,116970.0,116960.0,1.04636907]
[1755910503657,2.21944998,116970.0,116960.0,1.02934608]
[1755910507161,2.21944998,116970.0,116960.0,1.02938334]